Cogmind - Beta 12 X4 @@@ ROGUE MODE // 2022.10.01 @ 17:22:08 Player: Sandwich Result: Escaped! Performance ------------- Evolutions (9) 4500 Regions Visited (20) 4000 Robots Destroyed (153) 765 Value Destroyed (6914) 6914 Prototype IDs (41) 820 Alien Tech Used (0) 0 Bonus (6800) 6800 TOTAL SCORE: 23799 Bonus ------- High Alert Combat Kills 1896 Follower Combat Kills 1568 Entered DSFs 1000 Network Hubs Disabled 200 Aligned with FarCom 300 Built Enhanced Grunts 300 Met R17 at Cetus 500 Win 3000 Friendly Fire -1964 Cogmind --------- Core Integrity 990/1600 Matter 300/300 Energy 33/100 System Corruption 0% Temperature Cool (12) Movement Flying (22) Location To Epsilon Eridani Parts ------- > --- POWER (2) -------- (None) > --- PROPULSION (9) --- Cooled Field Propulsion Drive Field Propulsion Array Improved Diametric Drive Experimental Q-thruster > --- UTILITY (8) ------ Advanced Signal Interpreter Advanced Melee Analysis Suite Advanced Melee Analysis Suite Advanced Target Analyzer System Shield > --- WEAPON (6) ------- Power Sword Enhanced Force Lance > --- INVENTORY (5) ---- Quantum Reactor Peak State ------------ > --- POWER ------------ Micro Antimatter Reactor Light Quantum Reactor > --- PROPULSION ------- Nuclear Pulse Array Cooled Field Propulsion Drive Cooled Field Propulsion Drive Field Propulsion Array Field Propulsion Array Experimental Q-thruster > --- UTILITY ---------- Advanced Heat Sink Advanced Signal Interpreter Advanced Melee Analysis Suite Advanced Melee Analysis Suite Advanced Melee Analysis Suite Advanced Target Analyzer System Shield Advanced System Shield > --- WEAPON ----------- Powered Hammer Power Sword Power Sword Power Sword Enhanced Force Lance > --- INVENTORY -------- Quantum Reactor Impulse Thruster Field Propulsion Array [Rating: 154] Favorites ----------- Power Quantum Reactor Engine Light Deuterium Engine Power Core Light Nuclear Core Reactor Quantum Reactor Propulsion Centrium Heavy Treads Treads Centrium Heavy Treads Wheel Compact Wheel Hover Unit Gravmag System Flight Unit Impulse Thruster Utility Advanced Melee Analysis Suite Device Advanced Heat Sink Storage Small Storage Unit Processor Advanced Melee Analysis Suite Hackware System Shield Protection Centrium Medium Armor Plating Weapon Advanced KE Penetrator Energy Gun Heavy Laser Energy Cannon Long-range Proton Cannon Ballistic Gun Advanced KE Penetrator Ballistic Cannon Heavy Mass Driver Launcher Rocket Launcher Special Weapon Field Lobotomy Kit Impact Weapon Powered Hammer Slashing Weapon Power Sword Piercing Weapon Enhanced Force Lance Build | -11 -10 -10 -9 -9 -9 -8 -8 -7 -7 -6 -6 -6 -6 -6 -5 -4 -3 -3 -2 -1 ------- Run | Scr Mat Min Mat Min Exi Min Mat Fac DSF Fac Ext Cet Arc Hub Fac Fac Res DSF Res Acc Slots Evolved 18 | . . . 2 . . . 2 2 . 2 . . . . 2 2 2 . 2 2 Power 1 | . . . . . . . . . . . . . . . 1 . . . . . Propulsion 7 | . . . 1 . . . . . . 1 . . . . . 1 1 . 1 2 Utility 6 | . . . 1 . . . . . . 1 . . . . 1 1 1 . 1 . Weapon 4 | . . . . . . . 2 2 . . . . . . . . . . . . Parts Attached 191 | 6 1 5 20 2 . 2 11 3 2 5 12 12 3 11 14 47 2 2 21 10 Power 24 | 1 . . 1 . . . 1 1 . . 4 2 . . 2 4 1 . 3 4 Engine 4 | 1 . . 1 . . . . . . . 2 . . . . . . . . . Core 7 | . . . . . . . 1 1 . . 2 1 . . . 2 . . . . Reactor 13 | . . . . . . . . . . . . 1 . . 2 2 1 . 3 4 Propulsion 45 | 2 . 4 4 . . . 3 . 1 1 3 4 . . . 9 1 . 8 5 Treads 7 | 1 . 2 . . . . . . . . . 2 . . . 2 . . . . Leg . | . . . . . . . . . . . . . . . . . . . . . Wheel 3 | 1 . . . . . . . . . . . . . . . 2 . . . . Hover 13 | . . . 3 . . . 3 . 1 1 3 2 . . . . . . . . Flight 22 | . . 2 1 . . . . . . . . . . . . 5 1 . 8 5 Utility 54 | 1 1 1 3 . . . 2 1 . 1 4 2 3 2 6 16 . 2 8 1 Device 23 | . 1 1 1 . . . 1 1 . 1 2 . 3 . 3 6 . . 2 1 Storage 4 | 1 . . . . . . . . . . . . . . 2 1 . . . . Processor 12 | . . . 1 . . . . . . . . 1 . . . 6 . 2 2 . Hackware 3 | . . . . . . . . . . . . . . . . . . . 3 . Protection 12 | . . . 1 . . . 1 . . . 2 1 . 2 1 3 . . 1 . Artifact . | . . . . . . . . . . . . . . . . . . . . . Weapon 68 | 2 . . 12 2 . 2 5 1 1 3 1 4 . 9 6 18 . . 2 . Energy Gun 10 | . . . 2 . . . . . . . . 1 . 2 1 4 . . . . Energy Cannon 2 | . . . 1 . . . . . . . . . . . 1 . . . . . Ballistic Gun 20 | 2 . . 1 . . . . . . . . 1 . 6 3 7 . . . . Ballistic Cannon 1 | . . . . . . . . . . . . . . . . 1 . . . . Launcher 7 | . . . 2 2 . . . . . . . . . . 1 1 . . 1 . Special Weapon 3 | . . . . . . . . . . . . 2 . 1 . . . . . . Impact Weapon 12 | . . . 5 . . 1 3 . . . 1 . . . . 2 . . . . Slashing Weapon 12 | . . . 1 . . 1 2 1 1 3 . . . . . 3 . . . . Piercing Weapon 1 | . . . . . . . . . . . . . . . . . . . 1 . Special Melee Weapon . | . . . . . . . . . . . . . . . . . . . . . Unidentified Prototypes 17 | . . . 4 . . . 1 . . . . 3 . 1 2 2 . . 3 1 Corrupted Parts 7 | . . . . . . . . . . . . . . 2 1 3 . . 1 . System Corruption 35 | . . . . . . . . . . . . . . 10 5 14 . . 6 . Parts Lost 66 | . . 2 . . . . 1 . 3 . 3 9 . 1 1 22 . 1 8 15 Power 8 | . . 1 . . . . 1 . . . . 1 . . . 1 . 1 . 3 Propulsion 22 | . . . . . . . . . 2 . 2 5 . . . 5 . . 3 5 Utility 15 | . . . . . . . . . . . . 1 . 1 . 5 . . 4 4 Weapon 21 | . . 1 . . . . . . 1 . 1 2 . . 1 11 . . 1 3 Highest Loss Streak 13 | . . 2 . . . . 1 . 3 . 2 5 . 1 1 10 . 1 2 13 To Critical Strikes 1 | . . . . . . . . . . . . . . . . 1 . . . . Average Slot Usage (%) 80 | . 96 92 95 100 100 100 91 76 71 65 77 56 65 79 81 76 85 90 83 80 Engine 2 | . 14 10 10 11 11 11 5 . . . . . . . . . . . . . Core 1 | . . . . . . . . 7 7 6 5 4 . . . . . . . . Reactor 4 | . . . . . . . . . . . . 1 6 6 10 8 9 9 7 7 Treads 5 | . 14 13 . . . . . . . . . 2 13 13 11 9 . . . . Wheel 1 | . 14 13 . . . . . . . . . . . . . . . . . . Hover 7 | . . . 24 33 33 33 27 23 18 20 25 11 . . . . . . . . Flight 5 | . . 1 8 . . . . . . . . . . . . 2 28 28 21 25 Device 10 | . 10 14 11 . . . 3 4 7 12 13 11 11 12 14 10 4 4 6 4 Storage 5 | . 14 14 11 11 11 11 9 7 7 6 6 6 6 6 5 4 . . . . Processor 6 | . . . 5 11 11 11 9 2 . . . 1 . . . 5 23 28 19 19 Hackware 1 | . . . . . . . . . . . . . . . . . . . 5 7 Protection 3 | . . . 5 11 11 11 5 7 7 . 3 5 6 5 4 5 . . . . Energy Gun 2 | . . . . . . . . . . . . . 6 7 11 3 . . . . Ballistic Gun 9 | . 28 24 5 . . . . . . . . . 6 18 16 20 . . . . Impact Weapon 3 | . . . 5 . . 5 21 . . . 3 6 6 5 . . 4 4 4 1 Slashing Weapon 6 | . . . 4 1 . 5 10 23 22 19 15 . . . . . 14 14 13 11 Naked Turns . | . . . . . . . . . . . . . . . . . . . . . Heaviest Build 172 | 13 14 15 20 20 20 20 24 31 29 28 42 50 50 64 96 172 41 41 49 46 Greatest Support 187 | 20 16 22 30 30 30 30 32 26 27 27 43 160 160 160 160 187 44 51 58 69 Greatest Overweight (x) 13 | 4 . . . . . . 1 1 1 1 1 4 . . . 13 . . . . Average Overweight (x) . | . . . . . . . . 1 1 . . . . . . . . . . . Largest Inventory Capacity 25 | 8 8 8 8 8 8 8 8 8 8 8 8 8 8 8 25 25 5 5 5 5 Average Capacity 8 | 7 8 8 8 8 8 8 8 8 8 8 8 8 8 8 8 13 5 5 5 5 Most Carried 9 | 2 8 8 8 8 8 8 8 8 8 5 8 7 8 8 8 9 3 3 5 5 Average Carried 6 | . 5 7 7 8 7 8 6 7 6 3 6 5 7 7 7 7 3 3 4 4 Final Capacity 8 | 8 8 8 8 8 8 8 8 8 8 8 8 8 8 8 8 5 5 5 5 5 Final Carried 8 | 2 8 8 8 8 8 8 8 8 5 4 7 7 8 8 8 4 3 3 5 1 Scrap Engine Consumption 6 | . . . . . . . . . . 6 . . . . . . . . . . Constructs Created 1 | . . . . . . . . . . 1 . . . . . . . . . . Class Distribution -------------------- 24% | Scavenger-Executioner 17% | Scavenger-Mutant 15% | Gladiator 13% | Mutant 10% | Sprinter 9% | Hacker-Sprinter 3% | Commander-Mutant 3% | Scavenger-Skirmisher Dominant Class ---------------- Mutant | -10/Materials Mutant | -10/Mines Scavenger-Mutant | -9/Materials Scavenger-Mutant | -9/Mines Scavenger-Mutant | -9/Exiles Scavenger-Mutant | -8/Mines Scavenger-Mutant | -8/Materials Gladiator | -7/Factory Gladiator | -7/DSF Gladiator | -6/Factory Gladiator | -6/Extension Commander-Mutant | -6/Cetus Scavenger-Mutant | -6/Archives Scavenger-Skirmisher | -6/Hub_04(d) Scavenger-Executioner | -5/Factory Scavenger-Executioner | -4/Factory Scavenger-Executioner | -3/Research Scavenger-Executioner | -3/DSF Sprinter | -2/Research Hacker-Sprinter | -1/Access Resources | -11 -10 -10 -9 -9 -9 -8 -8 -7 -7 -6 -6 -6 -6 -6 -5 -4 -3 -3 -2 -1 ----------- Run | Scr Mat Min Mat Min Exi Min Mat Fac DSF Fac Ext Cet Arc Hub Fac Fac Res DSF Res Acc Matter Collected 4183 | 188 102 82 267 42 . . 22 . 138 . 165 108 28 241 203 2092 . . 380 125 Remotely 117 | . . . . . . . . . . . . . . . 117 . . . . . Salvage Created 8190 | . 75 86 434 71 . . 57 . 45 . 670 16 . 667 203 4583 . . 691 592 Parts 390 | . 12 3 23 5 . . 4 . 2 . 39 2 . 28 9 183 . . 42 38 Haulers Intercepted 2 | . . . 1 . . . . . . . . . . . . 1 . . . . Recyclers Shooed 6 | . . . . . . . . . . . . . . . . 6 . . . . Parts Field Recycled . | . . . . . . . . . . . . . . . . . . . . . Retrieved Matter . | . . . . . . . . . . . . . . . . . . . . . Parts Self-Destructed . | . . . . . . . . . . . . . . . . . . . . . Prevented . | . . . . . . . . . . . . . . . . . . . . . Kills | -11 -10 -10 -9 -9 -9 -8 -8 -7 -7 -6 -6 -6 -6 -6 -5 -4 -3 -3 -2 -1 ------- Run | Scr Mat Min Mat Min Exi Min Mat Fac DSF Fac Ext Cet Arc Hub Fac Fac Res DSF Res Acc Combat Hostiles Destroyed 113 | . 4 2 9 2 . . 4 . 1 . 9 1 . 5 3 53 . . 9 11 Melee 39 | . . . 5 . . . 2 . 1 . 9 1 . . . 1 . . 9 11 Guns 52 | . 4 2 . . . . . . . . . . . 5 1 40 . . . . Cannons 4 | . . . . . . . . . . . . . . . 2 2 . . . . AOE 8 | . . . 4 2 . . . . . . . . . . . 2 . . . . Classes Destroyed 17 | . 2 . 6 . . . . . 1 . 2 . . 1 . 4 . . 1 . Worker 11 | . . . 1 . . . . . . . . . . 6 . 4 . . . . Builder 9 | . . . 2 . . . . . . . . . . . . 7 . . . . Hauler 2 | . . . 1 . . . . . . . . . . . . 1 . . . . Recycler 8 | . . . 2 . . . . . . . . . . . . 6 . . . . Mechanic 1 | . . . . . . . . . . . . . . . . 1 . . . . Operator 1 | . . . . . . . . . . . . . . . . . . . 1 . Watcher 6 | . . . 1 . . . . . . . 2 . . . . 1 . . 2 . Swarmer 23 | . 3 . 3 . . . 4 . . . 1 1 . . . 6 . . . 5 Grunt 48 | . 1 2 5 2 . . . . . . 2 . . 3 2 25 . . 2 4 Brawler 3 | . . . . . . . . . . . . . . 2 . 1 . . . . Duelist 4 | . . . 1 . . . . . . . . . . . . 3 . . . . Sentry 9 | . . . . . . . . . . . 4 . . . 1 4 . . . . Specialist 1 | . . . . . . . . . 1 . . . . . . . . . . . Hunter 6 | . . . . . . . . . . . . . . . . 6 . . . . Programmer 16 | . . . . . . . . . . . . . . . . 7 . . 7 2 Heavy 1 | . . . . . . . . . . . . . . . . 1 . . . . Behemoth 2 | . . . . . . . . . . . 2 . . . . . . . . . Cetus Guard 3 | . . . . . . . . . . . . . . 3 . . . . . . Best Kill Streak 12 | . 4 1 5 2 . . 4 . 1 . 2 1 . 4 2 12 . . 3 5 Combat Bots Only 11 | . 4 1 3 2 . . 4 . 1 . 2 1 . 3 2 11 . . 3 5 Max Kills in Single Turn 3 | . 2 1 3 2 . . 1 . 1 . 1 1 . 3 1 3 . . 1 2 Gunslinging 1 | . 1 . . . . . . . . . . . . . . . . . . . Exploded 2 | . . . 2 2 . . . . . . . . . . . 1 . . . . Melee 2 | . . . 1 . . . 1 . 1 . 1 1 . . . 1 . . 1 2 Uniques/NPCs Destroyed . | . . . . . . . . . . . . . . . . . . . . . Combat | -11 -10 -10 -9 -9 -9 -8 -8 -7 -7 -6 -6 -6 -6 -6 -5 -4 -3 -3 -2 -1 -------- Run | Scr Mat Min Mat Min Exi Min Mat Fac DSF Fac Ext Cet Arc Hub Fac Fac Res DSF Res Acc Damage Taken 11568 | . 78 288 88 18 . . 71 . 682 . 366 547 26 964 180 5598 . 79 966 1617 Core 1991 | . . 66 . . . . 16 . 64 . 71 87 . 66 35 766 . 16 194 610 Absorbed by Shields 1108 | . . . . . . . . . . . 125 67 . . 66 850 . . . . Redirected to Shielding 108 | . . . 13 . . . . . 51 . . 44 . . . . . . . . Core Remaining (%) 82 | 100 . 73 . . . 100 97 . 90 . . . . 73 96 33 . 98 86 61 Volleys Fired 168 | . 5 21 7 1 . . . . . . . 4 . 15 5 110 . . . . Largest 6 | . 2 2 1 2 . . . . . . . 1 . 5 6 6 . . . . Hottest 335 | . 40 40 33 66 . . . . . . . . . 254 335 258 . . . . Shots Fired 611 | . 10 28 7 2 . . . . . . . 4 1 41 28 490 . . . . Gun 581 | . 10 28 1 . . . . . . . . . 1 40 23 478 . . . . Cannon 12 | . . . . . . . . . . . . . . . 5 7 . . . . Launcher 13 | . . . 6 2 . . . . . . . . . . . 5 . . . . Special 5 | . . . . . . . . . . . . 4 . 1 . . . . . . Kinetic 500 | . 10 28 1 . . . . . . . . . . 34 13 414 . . . . Thermal 71 | . . . . . . . . . . . . . 1 6 10 54 . . . . Explosive 8 | . . . 6 2 . . . . . . . . . . . . . . . . Electromagnetic 27 | . . . . . . . . . . . . . . . 5 22 . . . . Robot Hit Streak 31 | . 4 11 3 1 . . . . . . . 5 6 4 13 31 . . . . Robot Miss Streak 5 | . 2 2 1 . . . . . . . . . . 4 2 5 . . . . Penetration Max 2 | . . . . . . . . . . . . . . 1 . 2 . . . . Secondary Targets 11 | . 1 1 . . . . . . . . . . . 2 . 7 . . . . Max Gunslinging Chain 1 | . 1 1 . . . . . . . . . . . 1 . 1 . . . . Shots Hit Robots 541 | . 6 20 22 1 . . 5 . 11 . 37 6 1 23 17 337 . . 39 16 Core Hits 294 | . 5 7 19 4 . . 2 . 2 . 12 1 . 27 9 178 . . 15 13 Critical Kills 16 | . . . . . . . . . . . . 1 . 2 . 13 . . . . Critical Parts Destroyed 17 | . . . . . . . 1 . . . 1 . . 4 . 10 . . 1 . Critical Strikes 52 | . . . 3 . . . 1 . . . 5 1 . 7 2 25 . . 5 3 Burn 1 | . . . . . . . . . . . . . . . . 1 . . . . Destroy 32 | . . . . . . . . . . . . . . 7 1 24 . . . . Corrupt 1 | . . . . . . . . . . . . . . . 1 . . . . . Smash 4 | . . . . . . . 1 . . . 1 1 . . . . . . 1 . Sever 10 | . . . 3 . . . . . . . 4 . . . . . . . 3 . Impale 4 | . . . . . . . . . . . . . . . . . . . 1 3 Melee Attacks 283 | . . . 28 . . . 10 . 12 2 58 13 . . . 8 . . 107 45 Impact 47 | . . . 4 . . . 9 . . . 5 13 . . . 4 . . 11 1 Slashing 172 | . . . 24 . . . 1 . 12 2 53 . . . . 4 . . 62 14 Piercing 64 | . . . . . . . . . . . . . . . . . . . 34 30 Sneak Attacks 4 | . . . 3 . . . . . . . 1 . . . . . . . . . Combat Hostiles . | . . . . . . . . . . . . . . . . . . . . . Follow-up Attacks 33 | . . . 1 . . . 1 . 4 . 13 . . . . . . . 11 3 Damage Inflicted 20732 | . 71 192 1243 82 . . 152 . 446 . 1964 90 19 1787 434 11213 . . 2097 942 Guns 10363 | . 71 192 . . . . . . . . . . 19 748 301 9032 . . . . Cannons 356 | . . . . . . . . . . . . . . . 121 235 . . . . Explosions 3516 | . . . 518 82 . . . . . . . . . 1033 12 1871 . . . . Melee 6479 | . . . 725 . . . 152 . 446 . 1964 90 . . . 63 . . 2097 942 Ramming 18 | . . . . . . . . . . . . . . 6 . 12 . . . . Kinetic 8832 | . 71 192 . . . . . . . . . . . 639 154 7776 . . . . Thermal 2067 | . . . . . . . . . . . . . 19 109 147 1792 . . . . Explosive 600 | . . . 518 82 . . . . . . . . . . . . . . . . Electromagnetic 2736 | . . . . . . . . . . . . . . 1033 133 1570 . . . . Impact 715 | . . . 68 . . . 117 . . . 175 90 . . . . . . 265 . Slashing 4425 | . . . 657 . . . 35 . 446 . 1789 . . . . 63 . . 1298 137 Piercing 1339 | . . . . . . . . . . . . . . . . . . . 534 805 Highest Corruption 26 | . . . . . . . . . . . 2 2 2 18 5 26 2 2 6 . Average Corruption 5 | . . . . . . . . . . . 1 2 2 12 5 6 2 2 6 . Corruption Purged . | . . . . . . . . . . . . . . . . . . . . . Corruption Blocked . | . . . . . . . . . . . . . . . . . . . . . Effects 110 | . . . . . . . . . . . 5 1 4 30 16 29 . 1 24 . Message Errors 35 | . . . . . . . . . . . 2 1 . 7 5 10 . . 10 . Matter Fused 26 | . . . . . . . . . . . 2 . 1 6 5 5 . 1 6 . Heat Flow Errors 14 | . . . . . . . . . . . 1 . 1 4 3 2 . . 3 . Energy Discharges 14 | . . . . . . . . . . . . . 1 7 3 1 . . 2 . Data Loss (minor) 8 | . . . . . . . . . . . . . . 1 . 6 . . 1 . Data Loss (major) 4 | . . . . . . . . . . . . . . 1 . 2 . . 1 . Misfires 1 | . . . . . . . . . . . . . 1 . . . . . . . Alerts 2 | . . . . . . . . . . . . . . 1 . . . . 1 . Misdirections 6 | . . . . . . . . . . . . . . 3 . 3 . . . . Overload Shots . | . . . . . . . . . . . . . . . . . . . . . Overflow Damage 763 | . . . 81 . . . 36 . 86 . 142 . . 21 . 68 . . 294 35 Projectiles . | . . . . . . . . . . . . . . . . . . . . . Explosions 89 | . . . . . . . . . . . . . . 21 . 68 . . . . Melee 674 | . . . 81 . . . 36 . 86 . 142 . . . . . . . 294 35 Knockbacks 5 | . . . . . . . . . . . 1 1 . . . 1 . . 2 . Impact 5 | . . . . . . . . . . . 1 1 . . . 1 . . 2 . Kinetic . | . . . . . . . . . . . . . . . . . . . . . Secondary . | . . . . . . . . . . . . . . . . . . . . . Self-Inflicted Damage 102 | . . . . . . . . . . . . . . 97 . 5 . . . . Shots 1 | . . . . . . . . . . . . . . 1 . . . . . . Rammed 2 | . . . . . . . . . . . . . . . . 2 . . . . Targets Rammed 3 | . . . . . . . . . . . . . . 1 . 2 . . . . Kicked . | . . . . . . . . . . . . . . . . . . . . . Crushed 1 | . . . . . . . . . . . . . . 1 . . . . . . Highest Temperature 387 | . 6 9 2 3 . . . . . . 228 . 220 240 374 387 4 . 236 356 Average Temperature 97 | . 6 4 2 2 . . . . . . 131 . 131 92 148 100 2 . 90 88 Received Heat Transfer 1497 | . 6 84 30 9 . . 9 . 27 . 66 42 . 88 42 887 . . 90 117 Effects 8 | . . . . . . . . . . . . . . . 1 5 . . 1 1 Shutdowns 3 | . . . . . . . . . . . . . . . 1 2 . . . . Energy Bleed 1 | . . . . . . . . . . . . . . . . . . . . 1 Interference 4 | . . . . . . . . . . . . . . . . 3 . . 1 . Siege Activations 2 | . . . . . . . . . . . . . . . . 2 . . . . Total Turns 11 | . . . . . . . . . . . . . . . . 11 . . . . Longest Duration 10 | . . . . . . . . . . . . . . . . 10 . . . . Robots Corrupted 10 | . . . . . . . . . . . . . . 2 . 8 . . . . Combat Hostiles 8 | . . . . . . . . . . . . . . . . 8 . . . . Parts Fried 18 | . . . . . . . 1 . . . . . . 2 1 14 . . . . Impact Corruptions 8 | . . . 1 . . . 3 . . . 1 . . . . . . . 3 . Robots Melted . | . . . . . . . . . . . . . . . . . . . . . Combat Hostiles . | . . . . . . . . . . . . . . . . . . . . . Parts Melted 6 | . . . . . . . . . . . 1 . . . . 5 . . . . Heat Transferred 2995 | . . . . . . . . . . . . . 37 185 259 2514 . . . . Parts Sabotaged . | . . . . . . . . . . . . . . . . . . . . . Parts Stolen . | . . . . . . . . . . . . . . . . . . . . . Parts Stripped . | . . . . . . . . . . . . . . . . . . . . . Power Chain Reactions 3 | . . . . . . . . . . . . . . . . 3 . . . . Missiles Intercepted . | . . . . . . . . . . . . . . . . . . . . . Alert | -11 -10 -10 -9 -9 -9 -8 -8 -7 -7 -6 -6 -6 -6 -6 -5 -4 -3 -3 -2 -1 ------- Run | Scr Mat Min Mat Min Exi Min Mat Fac DSF Fac Ext Cet Arc Hub Fac Fac Res DSF Res Acc Peak Influence 1584 | . 145 101 384 200 . . 158 76 88 99 432 696 391 1464 697 1584 831 642 695 720 Initial 831 | . . 56 . 123 . . . 71 53 46 . 168 198 136 697 226 831 627 355 236 Average 467 | . 44 50 179 188 . . 68 71 64 53 213 467 361 1166 620 835 831 628 454 417 Maximum Alert Level 4 | . . . 1 1 . . . . . . 2 2 1 4 2 4 3 2 2 3 Low Security (%) 30 | 100 100 100 59 14 . 100 100 100 100 100 39 4 7 8 . . . . . . Level 1 23 | . . . 40 85 . . . . . . 56 10 92 . . 21 . . 42 58 Level 2 29 | . . . . . . . . . . . 4 84 . . 100 27 . 100 57 37 Level 3 6 | . . . . . . . . . . . . . . 22 . 20 100 . . 4 Level 4 11 | . . . . . . . . . . . . . . 67 . 30 . . . . Level 5 . | . . . . . . . . . . . . . . . . . . . . . High Security . | . . . . . . . . . . . . . . . . . . . . . Max Security . | . . . . . . . . . . . . . . . . . . . . . Squads Dispatched 44 | . 1 . 3 . . . 2 . 2 1 1 . . 7 1 17 . 1 6 2 Investigation 4 | . . . 1 . . . 1 . . 1 . . . 1 . . . . . . Extermination 7 | . . . . . . . . . . . . . . . . 4 . . 2 1 Reinforcement 21 | . 1 . 2 . . . 1 . 2 . 1 . . 3 1 5 . 1 4 . Assault 6 | . . . . . . . . . . . . . . 3 . 2 . . . 1 Garrison 6 | . . . . . . . . . . . . . . . . 6 . . . . Intercept . | . . . . . . . . . . . . . . . . . . . . . Searches Triggered 2 | . . . . . . . . . . . . . . . . . . . 2 . Construction Impeded 2 | . . . . . . . . . . . . . . . . 2 . . . . Haulers Reinforced 1 | . . . . . . . . . . . . . . . . 1 . . . . Active Scanning Responses . | . . . . . . . . . . . . . . . . . . . . . Cargo Convoy Interrupts . | . . . . . . . . . . . . . . . . . . . . . Stealth | -11 -10 -10 -9 -9 -9 -8 -8 -7 -7 -6 -6 -6 -6 -6 -5 -4 -3 -3 -2 -1 --------- Run | Scr Mat Min Mat Min Exi Min Mat Fac DSF Fac Ext Cet Arc Hub Fac Fac Res DSF Res Acc Distress Signals 20 | . 1 . 2 . . . . . . . 2 2 . 2 1 9 . . 1 . Communications Jammed . | . . . . . . . . . . . . . . . . . . . . . Distress Signals . | . . . . . . . . . . . . . . . . . . . . . Times Spotted 323 | . 7 11 18 3 . . 9 . 4 2 15 17 5 35 5 111 . 3 48 30 Peak Tracking Total 13 | . 7 9 5 3 . . 6 . 3 1 3 6 2 8 3 13 . 4 11 8 Tactical Retreats 37 | . . 1 2 . . . 1 . 2 . . . . 5 . 12 . . 10 4 Traps | -11 -10 -10 -9 -9 -9 -8 -8 -7 -7 -6 -6 -6 -6 -6 -5 -4 -3 -3 -2 -1 ------- Run | Scr Mat Min Mat Min Exi Min Mat Fac DSF Fac Ext Cet Arc Hub Fac Fac Res DSF Res Acc Traps Triggered 22 | . 2 2 1 . . . 1 1 . . 3 . . 4 3 2 1 . 1 1 Indirectly . | . . . . . . . . . . . . . . . . . . . . . Trap Hack Attempts . | . . . . . . . . . . . . . . . . . . . . . Triggered . | . . . . . . . . . . . . . . . . . . . . . Disarmed . | . . . . . . . . . . . . . . . . . . . . . Reprogrammed . | . . . . . . . . . . . . . . . . . . . . . Reused . | . . . . . . . . . . . . . . . . . . . . . Traps Extracted . | . . . . . . . . . . . . . . . . . . . . . Installed . | . . . . . . . . . . . . . . . . . . . . . Triggered . | . . . . . . . . . . . . . . . . . . . . . Machines | -11 -10 -10 -9 -9 -9 -8 -8 -7 -7 -6 -6 -6 -6 -6 -5 -4 -3 -3 -2 -1 ---------- Run | Scr Mat Min Mat Min Exi Min Mat Fac DSF Fac Ext Cet Arc Hub Fac Fac Res DSF Res Acc Machines Disabled 21 | . . . . . . . . . . . 1 1 2 12 1 2 . . . 2 Max in Single Turn 12 | . . . . . . . . . . . . . . 12 1 1 . . . 1 Garrison Access 1 | . . . . . . . . . . . . . . 1 . . . . . . Network Hub 1 | . . . . . . . . . . . . . . 1 . . . . . . Machines Sabotaged . | . . . . . . . . . . . . . . . . . . . . . Overloaded Fab Kills . | . . . . . . . . . . . . . . . . . . . . . Hacking | -11 -10 -10 -9 -9 -9 -8 -8 -7 -7 -6 -6 -6 -6 -6 -5 -4 -3 -3 -2 -1 --------- Run | Scr Mat Min Mat Min Exi Min Mat Fac DSF Fac Ext Cet Arc Hub Fac Fac Res DSF Res Acc Machines Accessed 23 | . . 1 5 . 1 . . 1 . 2 1 1 . . 1 2 1 . 6 1 Terminals 20 | . . . 5 . . . . 1 . 2 1 1 . . 1 1 1 . 6 1 Fabricators 1 | . . . . . . . . . . . . . . . . 1 . . . . Repair Stations . | . . . . . . . . . . . . . . . . . . . . . Recycling Units . | . . . . . . . . . . . . . . . . . . . . . Scanalyzers . | . . . . . . . . . . . . . . . . . . . . . Garrison Access . | . . . . . . . . . . . . . . . . . . . . . Total Hacks 61 | . . 1 9 . 1 . . 1 . 10 1 3 . . 1 4 2 . 25 3 Successful 16 | . . 1 1 . 1 . . 1 . 3 . . . . 1 . 1 . 7 . Failed 45 | . . . 8 . . . . . . 7 1 3 . . . 4 1 . 18 3 Catastrophic 15 | . . . 3 . . . . . . 1 1 2 . . . 2 . . 3 3 Database Lockouts . | . . . . . . . . . . . . . . . . . . . . . Manual 22 | . . . 6 . 1 . . . . . . 1 . . . 3 . . 11 . Terminals 58 | . . . 9 . . . . 1 . 10 1 3 . . 1 3 2 . 25 3 Fabricators 1 | . . . . . . . . . . . . . . . . 1 . . . . Repair Stations . | . . . . . . . . . . . . . . . . . . . . . Recycling Units . | . . . . . . . . . . . . . . . . . . . . . Scanalyzers . | . . . . . . . . . . . . . . . . . . . . . Garrison Access . | . . . . . . . . . . . . . . . . . . . . . Terminal Hacks 16 | . . 1 1 . 1 . . 1 . 3 . . . . 1 . 1 . 7 . Part Schematic 1 | . . . . . . . . . . 1 . . . . . . . . . . Open Door 1 | . . 1 . . . . . . . . . . . . . . . . . . Open DSF 4 | . . . . . . . . 1 . . . . . . 1 . 1 . 1 . Level Access Points 1 | . . . . . . . . . . . . . . . . . . . 1 . Branch Access Points 1 | . . . . . . . . . . . . . . . . . . . 1 . Alert Level 1 | . . . . . . . . . . . . . . . . . . . 1 . Unreport Threat 1 | . . . . . . . . . . . . . . . . . . . 1 . Dispatch Records 1 | . . . . . . . . . . 1 . . . . . . . . . . Hauler Manifests 1 | . . . 1 . . . . . . . . . . . . . . . . . Registered Components 1 | . . . . . . . . . . . . . . . . . . . 1 . Zone Layout 2 | . . . . . . . . . . 1 . . . . . . . . 1 . EX-Prototype ID Bank 1 | . . . . . 1 . . . . . . . . . . . . . . . Fabricator Hacks . | . . . . . . . . . . . . . . . . . . . . . Repair Station Hacks . | . . . . . . . . . . . . . . . . . . . . . Recycling Unit Hacks . | . . . . . . . . . . . . . . . . . . . . . Scanalyzer . | . . . . . . . . . . . . . . . . . . . . . Garrison Access Hacks . | . . . . . . . . . . . . . . . . . . . . . Unauthorized Hacks . | . . . . . . . . . . . . . . . . . . . . . Terminals . | . . . . . . . . . . . . . . . . . . . . . Fabricators . | . . . . . . . . . . . . . . . . . . . . . Repair Stations . | . . . . . . . . . . . . . . . . . . . . . Recycling Units . | . . . . . . . . . . . . . . . . . . . . . Scanalyzers . | . . . . . . . . . . . . . . . . . . . . . Garrison Access . | . . . . . . . . . . . . . . . . . . . . . Data Cores Recovered 1 | . . . . . . . . . . . . . . . . . . . 1 . Used . | . . . . . . . . . . . . . . . . . . . . . Hacking Detections 17 | . . . 5 . . . . . . 2 1 2 . . . 2 . . 4 1 Full Trace Events 1 | . . . . . . . . . . 1 . . . . . . . . . . Feedback Events . | . . . . . . . . . . . . . . . . . . . . . Feedback Blocked . | . . . . . . . . . . . . . . . . . . . . . Robot Schematics Acquired . | . . . . . . . . . . . . . . . . . . . . . Robots Built . | . . . . . . . . . . . . . . . . . . . . . Authchips . | . . . . . . . . . . . . . . . . . . . . . Time . | . . . . . . . . . . . . . . . . . . . . . Total Robot Build Rating . | . . . . . . . . . . . . . . . . . . . . . Part Schematics Acquired 1 | . . . . . . . . . . 1 . . . . . . . . . . Parts Built . | . . . . . . . . . . . . . . . . . . . . . Authchips . | . . . . . . . . . . . . . . . . . . . . . Time . | . . . . . . . . . . . . . . . . . . . . . Total Part Build Rating . | . . . . . . . . . . . . . . . . . . . . . Parts Repaired . | . . . . . . . . . . . . . . . . . . . . . Time . | . . . . . . . . . . . . . . . . . . . . . Parts Recycled . | . . . . . . . . . . . . . . . . . . . . . Recycled Matter . | . . . . . . . . . . . . . . . . . . . . . Retrieved Matter . | . . . . . . . . . . . . . . . . . . . . . Retrieved Components . | . . . . . . . . . . . . . . . . . . . . . Parts Scanalyzed . | . . . . . . . . . . . . . . . . . . . . . Part Schematics Acquired . | . . . . . . . . . . . . . . . . . . . . . Parts Damaged . | . . . . . . . . . . . . . . . . . . . . . Bothacking | -11 -10 -10 -9 -9 -9 -8 -8 -7 -7 -6 -6 -6 -6 -6 -5 -4 -3 -3 -2 -1 ------------ Run | Scr Mat Min Mat Min Exi Min Mat Fac DSF Fac Ext Cet Arc Hub Fac Fac Res DSF Res Acc Used RIF Installer . | . . . . . . . . . . . . . . . . . . . . . Robots Hacked . | . . . . . . . . . . . . . . . . . . . . . Non-combat . | . . . . . . . . . . . . . . . . . . . . . Combat . | . . . . . . . . . . . . . . . . . . . . . Robot Hacks Applied . | . . . . . . . . . . . . . . . . . . . . . Relay Couplers Released 1 | . . . . . . . . . . . . . . 1 . . . . . . Machine Destruction 1 | . . . . . . . . . . . . . . 1 . . . . . . Fabnet Peak Effective % . | . . . . . . . . . . . . . . . . . . . . . Robots Rewired . | . . . . . . . . . . . . . . . . . . . . . Allies Hacked . | . . . . . . . . . . . . . . . . . . . . . Hacks Repelled . | . . . . . . . . . . . . . . . . . . . . . Allies | -11 -10 -10 -9 -9 -9 -8 -8 -7 -7 -6 -6 -6 -6 -6 -5 -4 -3 -3 -2 -1 -------- Run | Scr Mat Min Mat Min Exi Min Mat Fac DSF Fac Ext Cet Arc Hub Fac Fac Res DSF Res Acc Total Allies 14 | . . . . . . . . . . . 4 9 . 1 . . . . . . Largest Group 9 | . . . . . . . . . . . 4 9 8 8 . . . . . . Highest-Rated Group 835 | . . . . . . . . . . . 262 835 719 710 . . . . . . Highest-Rated Ally 159 | . . . . . . . . . . . 159 159 96 109 . . . . . . Total Orders . | . . . . . . . . . . . . . . . . . . . . . Ally Attacks 232 | . . . . . . . . . . . 47 76 25 84 . . . . . . Total Damage 7292 | . . . . . . . . . . . 968 2974 1091 2259 . . . . . . Kills 44 | . . . . . . . . . . . 6 16 4 18 . . . . . . Allies Corrupted 3 | . . . . . . . . . . . . . . 3 . . . . . . Allies Melted . | . . . . . . . . . . . . . . . . . . . . . Field Lobotomies 5 | . . . . . . . . . . . . 4 . 1 . . . . . . Intel | -11 -10 -10 -9 -9 -9 -8 -8 -7 -7 -6 -6 -6 -6 -6 -5 -4 -3 -3 -2 -1 ------- Run | Scr Mat Min Mat Min Exi Min Mat Fac DSF Fac Ext Cet Arc Hub Fac Fac Res DSF Res Acc Robot Analysis Total . | . . . . . . . . . . . . . . . . . . . . . Derelict Logs Recovered 2 | . . 1 . 1 . . . . . . . . . . . . . . . . Drone Launches . | . . . . . . . . . . . . . . . . . . . . . Drone Recoveries . | . . . . . . . . . . . . . . . . . . . . . Exploration | -11 -10 -10 -9 -9 -9 -8 -8 -7 -7 -6 -6 -6 -6 -6 -5 -4 -3 -3 -2 -1 ------------- Run | Scr Mat Min Mat Min Exi Min Mat Fac DSF Fac Ext Cet Arc Hub Fac Fac Res DSF Res Acc Turns Passed 9104 | 66 234 486 554 144 141 59 351 187 165 490 609 427 197 655 833 1781 23 22 1307 373 Spaces Moved 8631 | 51 207 326 400 203 215 30 241 148 124 415 516 278 115 359 453 1028 59 65 2813 585 Core 115 | 15 . . . . . . . . . . . . . . . 100 . . . . Treads 1710 | 5 . 179 . . . . . . . . . 70 115 359 453 529 . . . . Legs . | . . . . . . . . . . . . . . . . . . . . . Wheels 352 | 31 207 81 . . . . . . . . . . . . . 33 . . . . Hover 2500 | . . . 400 203 215 30 241 148 124 415 516 208 . . . . . . . . Flight 3954 | . . 66 . . . . . . . . . . . . . 366 59 65 2813 585 Fastest Speed 12 | 50 100 37 65 65 65 65 48 108 108 52 48 48 160 160 160 28 28 25 19 12 Average Speed 70 | 108 100 125 73 65 65 65 61 108 112 104 50 111 160 160 160 106 28 25 24 17 Slowest Speed 465 | 250 100 170 76 65 65 65 120 108 116 112 112 260 160 160 160 465 28 28 31 22 Overloaded Moves 170 | . . . . . . . . . . . . . . . . . . . 7 163 Propulsion Burnouts . | . . . . . . . . . . . . . . . . . . . . . Robots Hopped 41 | . . 3 . . . . . . . . . . . . . 6 . . 26 6 Cave-ins Triggered . | . . . . . . . . . . . . . . . . . . . . . Exploration Rate (%) 40 | 4 46 74 34 51 64 10 22 7 88 9 57 80 81 49 12 31 2 71 53 14 Regions Visited 20 Branch Regions 8 Pre-discovered Areas . | . . . . . . . . . . . . . . . . . . . . . Known Exits Taken 6 | . . . . . . . 1 1 . . . 1 . 1 . . 1 . 1 . Unknown Exits Taken 12 | 1 1 1 1 1 1 1 . . . 1 1 . 1 . 1 1 . . . . Scrap Searched 1 | . . . . 1 . . . . . . . . . . . . . . . . Spaces Dug 63 | . . . 6 . . . 3 . . 1 4 1 . . . 5 . . 35 8 Terrain Destroyed 367 | . . . 57 10 . . 3 . . 1 4 1 . 147 11 90 . . 35 8 Melee 57 | . . . . . . . 3 . . 1 4 1 . . . 5 . . 35 8 Projectile 82 | . . . . . . . . . . . . . . 6 11 65 . . . . AOE 227 | . . . 57 10 . . . . . . . . . 141 . 19 . . . . Terrain Rammed . | . . . . . . . . . . . . . . . . . . . . . Walls Destroyed . | . . . . . . . . . . . . . . . . . . . . . Machines Disabled . | . . . . . . . . . . . . . . . . . . . . . Actions | -11 -10 -10 -9 -9 -9 -8 -8 -7 -7 -6 -6 -6 -6 -6 -5 -4 -3 -3 -2 -1 --------- Run | Scr Mat Min Mat Min Exi Min Mat Fac DSF Fac Ext Cet Arc Hub Fac Fac Res DSF Res Acc Total 10836 | 58 225 380 615 212 216 68 431 175 137 470 800 371 129 404 545 1406 64 69 3282 779 Wait 1484 | . 4 17 146 5 . 37 152 9 2 40 188 59 9 14 61 194 3 2 392 150 Move 8534 | 50 206 319 399 202 214 29 240 147 123 414 515 277 114 358 452 1016 58 64 2761 576 Hop 35 | . . 3 . . . . . . . . . . . . . 5 . . 25 2 Pick Up 67 | 2 8 6 6 1 1 . 6 1 1 2 6 2 . 2 5 6 . . 7 5 Fast Attach 108 | 6 . 1 10 . . . 6 2 . 3 4 6 2 9 10 29 1 2 14 3 Attach 48 | . 1 . 4 . . . 3 1 2 2 5 5 . . 2 11 1 . 5 6 Detach 16 | . . . 1 . . . 1 . . 2 2 3 1 . 1 4 . . . 1 Swap 36 | . . 4 6 2 . 2 2 . . . 3 1 1 2 2 7 . . 3 1 Drop 91 | . 1 9 12 1 1 . 13 2 1 5 2 1 2 3 7 16 1 1 9 4 Fire 168 | . 5 21 7 1 . . . . . . . 4 . 15 5 110 . . . . Melee 194 | . . . 24 . . . 8 . 8 2 37 13 . . . 6 . . 66 30 Ram 2 | . . . . . . . . . . . . . . . . 2 . . . . Kick . | . . . . . . . . . . . . . . . . . . . . . Crush 1 | . . . . . . . . . . . . . . 1 . . . . . . Escape Stasis 52 | . . . . . . . . 13 . . 38 . . . . . . . . 1 Rewire . | . . . . . . . . . . . . . . . . . . . . . Trap . | . . . . . . . . . . . . . . . . . . . . . Miscellaneous . | . . . . . . . . . . . . . . . . . . . . . Route ------- -11/Scrapyard -10/Materials -10/Mines -9/Materials -9/Mines -9/Exiles (discovered 2 exits: [*Min x2]) -8/Mines -8/Materials -7/Factory -7/DSF -6/Factory -6/Extension (discovered 3 exits: *Fac x2 / *Cet) -6/Cetus (discovered 2 exits: *Fac / *Arc) -6/Archives (discovered 3 exits: *Fac / *Hub x2) -6/Hub_04(d) (discovered 2 exits: *Fac x2) -5/Factory -4/Factory -3/Research -3/DSF -2/Research (discovered 5 exits: *Acc x3 / Qua x2) -1/Access To Epsilon Eridani History --------- Turn | Location | Event 19 | -11/Scrapyard | Discovered new exit (range 15) 67 | -11/Scrapyard | Entered Materials 181 | -10/Materials | Discovered new exit (range 14) 301 | -10/Materials | Entered Mines 306 | -10/Mines | Build established: Mutant 378 | -10/Mines | Met a Derelict who couldn't figure out how to use a Trap Extractor 711 | -10/Mines | Assembled infested the area 716 | -10/Mines | Assisted by a Guerilla fighting off Assembled 777 | -10/Mines | Learned Materials terminal intel 779 | -10/Mines | Discovered new exit (range 11) 787 | -10/Mines | Entered Materials 787 | -9/Materials | Evolved 2 slots: Propulsion x1, Utility x1 788 | -9/Materials | Loaded intel: 11 terminal locations 1100 | -9/Materials | Build established: Scavenger-Mutant 1323 | -9/Materials | Discovered new exit (range 16) 1341 | -9/Materials | Entered Mines 1354 | -9/Mines | Received a Rocket Launcher from a helpful Derelict 1399 | -9/Mines | Met a Derelict bent on vengeance 1483 | -9/Mines | Deemed a non-threat by the Exiles lab entrance 1483 | -9/Mines | Discovered new exit (range 5) 1485 | -9/Mines | Entered Exiles 1496 | -9/Exiles | Discovered new exit (range 19) 1501 | -9/Exiles | Met 8R-AWN 1512 | -9/Exiles | Met EX-HEX 1530 | -9/Exiles | Met EX-BIN 1538 | -9/Exiles | Aligned with FarCom system 1538 | -9/Exiles | Given EX-Vault access code 1554 | -9/Exiles | Opened EX-Vault 1559 | -9/Exiles | Found Field Lobotomy Kit 1575 | -9/Exiles | Warned to stay clear of 0b10 Research branches 1583 | -9/Exiles | Exiles lab attacked by MAIN.C 1617 | -9/Exiles | Discovered new exit (range 17) 1626 | -9/Exiles | Left Exiles lab with Field Lobotomy Kit 1626 | -9/Exiles | Entered Mines 1681 | -8/Mines | Discovered new exit (range 10) 1685 | -8/Mines | Entered Materials 1685 | -8/Materials | Evolved 2 slots: Weapon x2 1686 | -8/Materials | Identified exit to Factory 2036 | -8/Materials | Entered Factory 2036 | -7/Factory | Evolved 2 slots: Weapon x2 2044 | -7/Factory | Found Scrap Engine 2222 | -7/Factory | Identified exit to DSF 2223 | -7/Factory | Entered DSF 2259 | -7/DSF | Additional patrols routed to DSF 2338 | -7/DSF | Lost 3 parts (2n1w) 2371 | -7/DSF | Discovered new exit (range 16) 2388 | -7/DSF | Entered Factory 2388 | -6/Factory | Evolved 2 slots: Propulsion x1, Utility x1 2411 | -6/Factory | Build established: Gladiator 2850 | -6/Factory | Discovered new exit (range 16) 2878 | -6/Factory | Entered Extension 3003 | -6/Extension | Rescued A7 3030 | -6/Extension | Rescued a captive Derelict 3101 | -6/Extension | Rescued a captive Derelict 3141 | -6/Extension | Spotted B-75 Beast 3146 | -6/Extension | Spotted B-75 Beast 3164 | -6/Extension | Destroyed B-75 Beast 3173 | -6/Extension | Destroyed B-75 Beast 3293 | -6/Extension | Discovered new exit (range 3) 3343 | -6/Extension | Discovered new exit (range 16) 3344 | -6/Extension | Discovered new exit (range 14) 3487 | -6/Extension | Entered Cetus 3487 | -6/Cetus | Accompanied by 2 allies (A7) 3492 | -6/Cetus | Acquired a Cetus Manufacturing Module code from A7 3495 | -6/Cetus | Spotted Cetus Guard 3495 | -6/Cetus | Spotted Cetus Guard 3495 | -6/Cetus | Spotted Cetus Guard 3495 | -6/Cetus | Spotted Cetus Guard 3505 | -6/Cetus | Assimilated Cetus Guard with FLK Orb 3508 | -6/Cetus | Allies destroyed Cetus Guard 3508 | -6/Cetus | Assimilated Cetus Guard with FLK Orb 3508 | -6/Cetus | Allies destroyed Cetus Guard 3553 | -6/Cetus | Started Cetus Manufacturing Module 3568 | -6/Cetus | Lost 5 parts (1p2n2w) 3578 | -6/Cetus | Manufactured an Enhanced Grunt 3603 | -6/Cetus | Manufactured an Enhanced Grunt 3628 | -6/Cetus | Manufactured an Enhanced Grunt 3653 | -6/Cetus | Manufactured an Enhanced Grunt 3667 | -6/Cetus | Discovered new exit (range 16) 3678 | -6/Cetus | Manufactured an Enhanced Grunt 3747 | -6/Cetus | Spotted Cetus Guard 3748 | -6/Cetus | Spotted Cetus Guard 3750 | -6/Cetus | Extracted ID and sensor layout for unrecognized location from A7's data core 3755 | -6/Cetus | Spotted Cetus Guard 3756 | -6/Cetus | Spotted Cetus Guard 3759 | -6/Cetus | Discovered new exit (range 16) 3765 | -6/Cetus | Allies destroyed Cetus Guard 3766 | -6/Cetus | Assimilated Cetus Guard with FLK Orb 3770 | -6/Cetus | Allies destroyed Cetus Guard 3771 | -6/Cetus | Assimilated Cetus Guard with FLK Orb 3774 | -6/Cetus | Met Revision 17 3798 | -6/Cetus | Lost 4 parts (3n1u) 3817 | -6/Cetus | Identified exit to Factory 3907 | -6/Cetus | Build established: Commander-Mutant 3908 | -6/Cetus | Identified exit to Archives 3914 | -6/Cetus | Entered Archives 3914 | -6/Archives | Accompanied by 8 allies 3962 | -6/Archives | Unable to access archive contents 3967 | -6/Archives | Discovered new exit (range 14) 3997 | -6/Archives | Discovered exit to Factory (range 15) 4029 | -6/Archives | Discovered new exit (range 14) 4069 | -6/Archives | Unable to access archive contents 4111 | -6/Archives | Entered Hub_04(d) 4111 | -6/Hub_04(d) | Accompanied by 8 allies 4169 | -6/Hub_04(d) | Network Hub disabled 4169 | -6/Hub_04(d) | Destroyed Cetus Guard 4170 | -6/Hub_04(d) | Destroyed Cetus Guard 4170 | -6/Hub_04(d) | Destroyed Cetus Guard 4174 | -6/Hub_04(d) | System corruption reached 10% 4240 | -6/Hub_04(d) | Build established: Scavenger-Mutant 4440 | -6/Hub_04(d) | Discovered exit to Factory (range 16) 4461 | -6/Hub_04(d) | First assault squad dispatched 4638 | -6/Hub_04(d) | Build established: Scavenger-Skirmisher 4731 | -6/Hub_04(d) | Spotted Lightning 4732 | -6/Hub_04(d) | Discovered exit to Factory (range 10) 4732 | -6/Hub_04(d) | Spotted Lightning 4732 | -6/Hub_04(d) | Spotted Lightning 4745 | -6/Hub_04(d) | Assimilated Lightning with FLK Orb 4766 | -6/Hub_04(d) | Entered Factory 4766 | -5/Factory | Evolved 2 slots: Power x1, Utility x1 4944 | -5/Factory | Build established: Scavenger-Executioner 5578 | -5/Factory | Discovered new exit (range 5) 5599 | -5/Factory | Entered another Factory area 5599 | -4/Factory | Evolved 2 slots: Propulsion x1, Utility x1 6088 | -4/Factory | Garrison activated, responded to threat 6155 | -4/Factory | Destroyed 8 combat bots 6349 | -4/Factory | First assault squad dispatched 6495 | -4/Factory | Destroyed 11 combat bots 6866 | -4/Factory | Garrison activated, responded to threat 7016 | -4/Factory | Garrison activated, responded to threat 7098 | -4/Factory | Lost 10 parts (1p2n3u4w) 7116 | -4/Factory | Garrison activated, responded to threat 7161 | -4/Factory | System corruption reached 10% 7181 | -4/Factory | Core integrity fell below 50% 7205 | -4/Factory | Lost 5 parts (2n1u2w) 7377 | -4/Factory | Discovered new exit (range 13) 7380 | -4/Factory | Entered Research 7380 | -3/Research | Evolved 2 slots: Propulsion x1, Utility x1 7403 | -3/Research | Identified exit to DSF 7403 | -3/Research | Entered DSF 7422 | -3/DSF | Discovered new exit (range 15) 7425 | -3/DSF | Entered Research 7425 | -2/Research | Evolved 2 slots: Propulsion x1, Utility x1 7469 | -2/Research | Identified exit to Quarantine 7595 | -2/Research | Build established: Sprinter 8268 | -2/Research | Found Enh. Force Lance 8373 | -2/Research | Spotted B-90 Cyclops 8438 | -2/Research | Identified exit to Access 8451 | -2/Research | Search patrols dispatched 8481 | -2/Research | Build established: Hacker-Sprinter 8675 | -2/Research | Search patrols dispatched 8732 | -2/Research | Entered Access 8732 | -1/Access | Evolved 2 slots: Propulsion x2 8880 | -1/Access | Spotted B-99 Colossus 8881 | -1/Access | Spotted B-99 Colossus 9009 | -1/Access | First assault squad dispatched 9101 | -1/Access | Discovered new exit (range 5) 9105 | -1/Access | Identified exit to Surface 9105 | *** | Escaped! Last Messages --------------- 09086_ Penetrated by Slug. 09086_ Adv. Heat Sink destroyed. 09086_ Slug penetrates Sealed Heavy Doors. 09089_ U-05 Engineer builds a Wall. 09089_ Penetrated by Slug. 09089_ Slug penetrates Sealed Heavy Doors. 09090_ Xenon Bombardment Thruster destroyed. 09090_ Slug penetrates Sealed Heavy Doors. 09090_ Mic. Antimatter Reactor destroyed. 09090_ Slug penetrates B-99 Colossus. 09090_ K-01 Serf collects debris. 09091_ B-99 Colossus activates siege mode. 09091_ Adv. System Shield destroyed. 09091_ ECM Suite destroyed. 09093_ Slug penetrates Sealed Heavy Doors. 09095_ U-05 Engineer builds a Wall. 09096_ Slug penetrates Sealed Heavy Doors. 09101_ Main Access Shell breached. 09101_ EXIT=FOUND 09105_ EXIT=IDENTIFIED: SURFACE Map ----- +----------------------------------------------------+ | ## # #######??## *%# # | | = % == #???# =[!# # | | %*=%[ ############### # | | ![ # # | | ! # % # | | | # ######### | | % /% #???????? | | % # ###############???????? | | Y# #?????????????????????? | | ####" ####??????????????????? | | ## ## #### % #??????????????????? | | ##############??# #??????????????????? | | #???????????????# % #??????????????????? | | #???????????????# #??????????????????? | | #???????????????#BB BB #??????????????????? | | #???????????????#BB% %BB #??????????????????? | | #???????????????# ig #??????????????????? | | ####???????????????#""""g"""""#??????????????????? | | ???????????????????????""g"??????????????????????? | | ??######??????????????""g""??????????????????????? | | ### #???????????#""" """"""#???##########??#??? | | T" #???????????# #??? #? ???? | | "" #???????????# "" """ #??? # ???? | | ### #???????????# " "?????#"" # ????? | | ??## ##???????????# ?" "" "?????#"" /?????? | | ???# #????????????#??" "@ "?????#"" #?????? | | ???# #???????????????" "?????#T #?????? | | ???+ #???????????????""""""?????#"" ss #?????? | | ???# #??????????????????????????#"" s H#?????? | | ???# #??????????????????????????#"" #?????? | | ???# ######+#?????""""""""""""??# #?????? | | ???+ #?????#"" #??# s #?????? | | ???# #?????#"" #??# #?????? | | ???#+###### #?????#"" #??# #?????? | | ??????????# #?????#T #??# #?????? | | ??????????# #?????#"" #??# #?????? | | ??????????# #?????#"" #?## #?????? | | ??????????# #######"" ###"########+# #??? | | # % !%* #??? | | + % =! #??? | | ????#######+##+################################??? | | ????# ^%%=% =#???????????????????????????????? | | ????# =*[== #???????????????????????????????? | | ????# #???????????????????????????????? | | ????# #???????????????????????????????? | | ????# #???????????????????????????????? | | ????# #???????????????????????????????? | | ????# #???????????????????????????????? | | ????# #???????????????????????????????? | | ????# #???????????????????????????????? | +----------------------------------------------------+ Best States ------------- Heat Dissipation 81 Energy Generation 45 Energy Capacity 600 Matter Stores 300 Matter Capacity 300 Sight Range 20 Terrain Scan Range 14 Terrain Scan Density 10 ECM Strength 1 Additional Mass Support 9 Armor Coverage 900 Utility Shielding 66 Melee Speed Boost 20 Phase Shifting 5 Evasion (%) 70 Targeting Accuracy 8 Melee Accuracy 48 Target Analysis 8 Recoil Reduction 5 Defensive Hacking 24 Trap Extractor Capacity 6 Item Schematics ----------------- Imp. Antigrav System | -6/Factory | Hacked Robot Schematics ------------------ None Fabricated ------------ Nothing Alien Tech Used ----------------- None Achievements -------------- None Challenges ------------ None Game ------ Seed ReactionDroneReplicator Manual? 0 Play Time 02:13:51 Cumulative 195.1 hours Start 2022.10.01 @ 15:04:00 End 2022.10.01 @ 17:22:08 Sessions 1 Manual Loads 0 Difficulty Rogue Special Mode None Game No. 250 Rogue 206 Adventurer 4 Explorer 40 Win Type 0 Total 6 Types 5/1/0/0/0/0/0/0/0 Lore% 51 Gallery% 73 Achievement% 58 Wizard Run 0 Options --------- ASCII 0 Keyboard 0 Movement Mouse Keybinds 0 Fullscreen 1 Font 24/Smallcaps Map View 76x50 Tactical HUD 1 Map Filters NONE Filters NONE Steam 1 RUN: aeb91d95-2745-4753-b151-c6af8201f703